fUSD/lending_fUSD_20240324
["ID","MTS","AMOUNT","RATE_DAILY","PERIOD"]
[320306421,1711282243189,-157.29,0.00018297,2]
[320306423,1711282243198,-157.29,0.00018334,2]
[320306425,1711282243207,-157.29,0.0001837,2]
[320306427,1711282243216,-499.99,0.0001837,2]
[320306429,1711282243226,-1947.9276186,0.00018387,2]
[320306431,1711282243235,-4100.0,0.000184,2]
[320306433,1711282243244,-157.29,0.00018407,2]
[320306435,1711282243253,-157.29,0.00018443,2]
[320306437,1711282243261,-1447.88575774,0.00018445,2]
[320306439,1711282243270,-157.29,0.0001848,2]
[320306441,1711282243279,-157.29,0.00018516,2]
[320306443,1711282243288,-157.29,0.00018553,2]
[320306445,1711282243297,-157.29,0.00018589,2]
[320306447,1711282243306,-157.29,0.00018626,2]
[320306449,1711282243315,-1447.88575774,0.00018627,2]
[320306450,1711282243324,-1947.9276186,0.00018639,2]
[320306452,1711282243333,-2957.0,0.00018695,2]
[320306455,1711282243343,-1460.0,0.00018695,2]
[320306457,1711282243352,-358.0,0.00018695,2]
[320306458,1711282243361,-2422.0,0.00018695,2]
[320306461,1711282243370,-1625.0,0.00018695,2]
[320306463,1711282243379,-213.0,0.00018695,2]
[320306465,1711282243388,-2448.0,0.00018695,2]
[320306467,1711282243398,-5674.0,0.00018695,2]
[320306469,1711282243407,-42937.0,0.00018695,2]
[320306471,1711282243416,-4770.638,0.00018695,2]
[320306473,1711282243425,-430.483,0.00018695,2]
[320306475,1711282243435,-273.9,0.00018695,2]
[320306477,1711282243444,-156.0,0.00018747,2]
[320306479,1711282243453,-158.0,0.00018747,2]
[320306481,1711282243463,-457.0,0.00018795,2]
[320306482,1711282243473,-2562.0,0.00018795,2]
[320306485,1711282243482,-1380.0,0.00018795,2]
[320306487,1711282243491,-1251.0,0.00018795,2]
[320306489,1711282243500,-299.858,0.00018795,2]
[320306491,1711282243510,-1226.0,0.00018795,2]
[320306493,1711282243518,-1265.0,0.00018795,2]
[320306495,1711282243528,-604.0,0.00018795,2]
[320306497,1711282243537,-1447.88575774,0.00018809,2]
[320306499,1711282243546,-800.0,0.00018818,2]
[320306501,1711282243555,-300.39172486,0.00018842,2]
[320306502,1711282243565,-1947.9276186,0.00018891,2]
[320306505,1711282243576,-879.21207534,0.00018893,2]
[320306507,1711282243585,-57612.0949,0.00018897,2]
[320306509,1711282243595,-633.22998978,0.000189,2]
[320306511,1711282243604,-366.87454954,0.000189,2]
[320306513,1711282243614,-169.95727082,0.00018922,2]
[320306514,1711282243623,-200.0,0.00018923,2]
[320306516,1711282243632,-228.08307028,0.00018924,2]
[320306519,1711282243641,-790.20415744,0.00018932,2]
[320306521,1711282243650,-300.39172486,0.00018944,2]
[320306522,1711282243659,-879.21207534,0.00018949,2]
[320306524,1711282243669,-3893.38028,0.00018989,2]
[320306527,1711282243679,-238797.82474789,0.0001899,2]
[320306529,1711282243689,-1447.88575774,0.00018991,2]
[320306531,1711282243702,-499.83372875,0.00018997,2]
[320306533,1711282243712,-448.79454804,0.00018998,2]
[320306535,1711282243723,-299.32082626,0.00019,2]
[320306537,1711282243732,-1250.0,0.00019,3]
[320306539,1711282243741,-1500.0,0.00019,2]
[320306541,1711282243750,-330.1,0.00019,2]
[320306543,1711282243759,-2000.0,0.00019,2]
[320306545,1711282243770,-200.0,0.00019027,2]
[320306547,1711282243779,-190.41955246,0.00019033,2]
[320306549,1711282243788,-184.90887628,0.00019078,2]
[320306551,1711282243798,-1000.0,0.00019078,2]
[320306553,1711282243807,-160.07391968,0.00019108,2]
[320306555,1711282243816,-200.0,0.00019132,2]
[320306557,1711282243827,-800.0,0.00019132,2]
[320306559,1711282243837,-200.0,0.00019132,2]
[320306561,1711282243846,-500.0,0.00019132,2]
[320306563,1711282243856,-200.0,0.00019132,2]
[320306565,1711282243866,-1947.9276186,0.00019143,2]
[320306567,1711282243875,-1447.88575774,0.00019173,2]
[320306569,1711282243885,-3774.05665521,0.00019176,2]
[320306571,1711282243894,-613.55627316,0.00019176,2]
[320306573,1711282243905,-300.39172486,0.00019176,2]
[320306575,1711282243914,-322.93917993,0.00019178,2]
[320306577,1711282243924,-500.0,0.00019178,2]
[320306579,1711282243933,-619.59849175,0.00019178,2]
[320306581,1711282243944,-154.94152492,0.00019178,2]
[320306583,1711282243953,-327.7584849,0.00019178,2]
[320306585,1711282243963,-241.54025033,0.00019178,2]
[320306587,1711282243974,-500.0,0.00019178,2]
[320306589,1711282243984,-398.12095819,0.00019178,2]
[320306591,1711282243993,-500.0,0.00019178,2]
[320306594,1711282244002,-166.51365079,0.00019178,2]
[320306596,1711282244012,-500.0,0.00019178,2]
[320306598,1711282244022,-500.0,0.00019178,2]
[320306600,1711282244031,-500.0,0.00019178,2]
[320306602,1711282244040,-500.0,0.00019178,2]
[320306604,1711282244050,-500.0,0.00019178,2]
[320306606,1711282244058,-500.0,0.00019178,2]
[320306608,1711282244067,-500.9211099,0.00019178,2]
[320306610,1711282244076,-500.0,0.00019178,2]
[320306612,1711282244086,-506.2587209,0.00019178,2]
[320306614,1711282244094,-514.94188452,0.00019178,2]
[320306616,1711282244104,-510.58141377,0.00019178,2]
[320306618,1711282244113,-500.0,0.00019178,2]
[320306620,1711282244122,-500.0,0.00019178,2]
[320306622,1711282244131,-500.0,0.00019178,2]
[320306624,1711282244140,-500.0,0.00019178,2]
[320306626,1711282244149,-500.0,0.00019178,2]
[320306628,1711282244158,-500.0,0.00019178,2]
[320306630,1711282244167,-500.0,0.00019178,2]
[320306632,1711282244176,-500.0,0.00019178,2]
[320306634,1711282244186,-500.0,0.00019178,2]
[320306636,1711282244195,-550.56428735,0.00019178,2]
[320306638,1711282244204,-500.0,0.00019178,2]
[320306640,1711282244214,-502.92191731,0.00019178,2]
[320306642,1711282244224,-500.0,0.00019178,2]
[320306644,1711282244233,-507.05179884,0.00019178,2]
[320306646,1711282244244,-500.0,0.00019178,2]
[320306647,1711282244253,-500.0,0.00019178,2]
[320306649,1711282244263,-510.85619285,0.00019178,2]
[320306652,1711282244272,-500.0,0.00019178,2]
[320306654,1711282244281,-646.24,0.00019178,2]
[320306656,1711282244291,-500.0,0.00019178,2]
[320306658,1711282244301,-500.0,0.00019178,2]
[320306660,1711282244310,-500.0,0.00019178,2]
[320306662,1711282244320,-500.0,0.00019178,2]
[320306664,1711282244329,-507.70875928,0.00019178,2]
[320306666,1711282244339,-500.0,0.00019178,2]
[320306668,1711282244348,-636.00698905,0.00019178,2]
[320306670,1711282244358,-500.0,0.00019178,2]
[320306672,1711282244367,-500.0,0.00019178,2]
[320306674,1711282244376,-500.0,0.00019178,2]
[320306676,1711282244386,-502.90163087,0.00019178,2]
[320306678,1711282244394,-500.0,0.00019178,2]
[320306680,1711282244404,-500.0,0.00019178,2]
[320306682,1711282244413,-235.78950832,0.00019178,2]
[320306684,1711282244422,-500.0,0.00019178,2]
[320306686,1711282244431,-500.0,0.00019178,2]
[320306688,1711282244440,-163.27755787,0.00019178,2]
[320306690,1711282244449,-188.05458422,0.00019178,2]
[320306692,1711282244458,-505.87494455,0.00019178,2]
[320306694,1711282244467,-509.50302702,0.00019178,2]
[320306696,1711282244477,-500.0,0.00019178,2]
[320306698,1711282244486,-507.2686553,0.00019178,2]
[320306700,1711282244495,-500.0,0.00019178,2]
[320306702,1711282244503,-506.3604022,0.00019178,2]
[320306704,1711282244512,-409.22539366,0.00019178,2]
[320306706,1711282244521,-505.68679116,0.00019178,2]
[320306708,1711282244530,-532.18,0.00019178,2]
[320306710,1711282244539,-500.0,0.00019178,2]
[320306712,1711282244548,-500.0,0.00019178,2]
[320306714,1711282244557,-500.0,0.00019178,2]
[320306716,1711282244566,-511.18462044,0.00019178,2]
[320306718,1711282244575,-500.0,0.00019178,2]
[320306720,1711282244585,-500.0,0.00019178,2]
[320306722,1711282244594,-500.0,0.00019178,2]
[320306724,1711282244603,-502.84853574,0.00019178,2]
[320306726,1711282244612,-500.0,0.00019178,2]
[320306728,1711282244620,-500.0,0.00019178,2]
[320306730,1711282244629,-500.0,0.00019178,2]
[320306732,1711282244638,-506.5328153,0.00019178,2]
[320306734,1711282244647,-500.0,0.00019178,2]
[320306736,1711282244656,-506.02963539,0.00019178,2]
[320306738,1711282244665,-500.0,0.00019178,2]
[320306740,1711282244675,-500.0,0.00019178,2]
[320306742,1711282244684,-500.0,0.00019178,2]
[320306744,1711282244695,-500.0,0.00019178,2]
[320306746,1711282244704,-500.0,0.00019178,2]
[320306748,1711282244713,-500.0,0.00019178,2]
[320306750,1711282244724,-507.41353889,0.00019178,2]
[320306752,1711282244734,-500.0,0.00019178,2]
[320306754,1711282244743,-500.0,0.00019178,2]
[320306756,1711282244765,-500.0,0.00019178,2]
[320306758,1711282244814,-500.0,0.00019178,2]
[320306760,1711282244827,-500.0,0.00019178,2]
[320306762,1711282244839,-549.45,0.00019178,2]
[320306764,1711282244848,-500.0,0.00019178,2]
[320306765,1711282244858,-500.0,0.00019178,2]
[320306768,1711282244867,-501.5633693,0.00019178,2]
[320306770,1711282244877,-500.0,0.00019178,2]
[320306772,1711282244889,-506.09644191,0.00019178,2]
[320306774,1711282244899,-500.0,0.00019178,2]
[320306776,1711282244909,-500.0,0.00019178,2]
[320306778,1711282244918,-500.0,0.00019178,2]
[320306780,1711282244928,-2961.84,0.00019178,2]
[320306782,1711282244937,-500.0,0.00019178,2]
[320306784,1711282244947,-632.13035997,0.00019178,2]
[320306786,1711282244956,-507.83299941,0.00019178,2]
[320306788,1711282244966,-565.8,0.00019178,2]
[320306790,1711282244976,-500.0,0.00019178,2]
[320306792,1711282244986,-500.0,0.00019178,2]
[320306794,1711282244995,-617.94505493,0.00019178,2]
[320306796,1711282245004,-500.0,0.00019178,2]
[320306798,1711282245013,-500.0,0.00019178,2]
[320306800,1711282245024,-500.0,0.00019178,2]
[320306802,1711282245033,-613.57982275,0.00019178,2]
[320306804,1711282245043,-500.0,0.00019178,2]
[320306806,1711282245052,-500.0,0.00019178,2]
[320306808,1711282245061,-500.0,0.00019178,2]
[320306810,1711282245071,-500.0,0.00019178,2]
[320306812,1711282245080,-495.18585199,0.00019178,2]
[320306814,1711282245089,-500.0,0.00019178,2]
[320306815,1711282245098,-500.0,0.00019178,2]
[320306818,1711282245107,-586.20487448,0.00019178,2]
[320306819,1711282245117,-311.54723987,0.00019178,2]
[320306822,1711282245127,-506.1564334,0.00019178,2]
[320306824,1711282245137,-500.0,0.00019178,2]
[320306826,1711282245147,-500.0,0.00019178,2]
[320306828,1711282245156,-500.0,0.00019178,2]
[320306830,1711282245166,-500.0,0.00019178,2]
[320306832,1711282245175,-500.0,0.00019178,2]
[320306833,1711282245186,-500.0,0.00019178,2]
[320306835,1711282245197,-500.0,0.00019178,2]
[320306838,1711282245206,-500.0,0.00019178,2]
[320306839,1711282245216,-500.89,0.00019178,2]
[320306841,1711282245227,-500.0,0.00019178,2]
[320306843,1711282245238,-500.0,0.00019178,2]
[320306846,1711282245248,-500.0,0.00019178,2]
[320306848,1711282245258,-499.86,0.00019178,2]
[320306849,1711282245267,-500.0,0.00019178,2]
[320306850,1711282245276,-500.0,0.00019178,2]
[320306851,1711282245288,-500.0,0.00019178,2]
[320306852,1711282245298,-500.0,0.00019178,2]
[320306853,1711282245308,-500.0,0.00019178,2]
[320306854,1711282245317,-503.45962967,0.00019178,2]
[320306855,1711282245327,-500.0,0.00019178,2]
[320306856,1711282245337,-500.0,0.00019178,2]
[320306857,1711282245347,-500.0,0.00019178,2]
[320306859,1711282245357,-500.0,0.00019178,2]
[320306861,1711282245367,-500.0,0.00019178,2]
[320306863,1711282245376,-511.92421203,0.00019178,2]
[320306865,1711282245385,-500.0,0.00019178,2]
[320306867,1711282245394,-500.0,0.00019178,2]
[320306869,1711282245404,-500.0,0.00019178,2]
[320306871,1711282245413,-500.0,0.00019178,2]
[320306873,1711282245422,-506.75553492,0.00019178,2]
[320306875,1711282245432,-500.0,0.00019178,2]
[320306877,1711282245442,-500.0,0.00019178,2]
[320306879,1711282245452,-500.0,0.00019178,2]
[320306881,1711282245462,-500.0,0.00019178,2]
[320306883,1711282245473,-506.9626985,0.00019178,2]
[320306885,1711282245483,-506.05092767,0.00019178,2]
[320306887,1711282245493,-507.09227037,0.00019178,2]
[320306889,1711282245503,-500.0,0.00019178,2]
[320306891,1711282245514,-500.0,0.00019178,2]
[320306893,1711282245523,-500.0,0.00019178,2]
[320306895,1711282245533,-462.58807548,0.00019178,2]
[320306897,1711282245544,-514.49561051,0.00019178,2]
[320306899,1711282245554,-2956.6,0.00019178,2]
[320306901,1711282245563,-504.92939674,0.00019178,2]
[320306903,1711282245573,-500.0,0.00019178,2]
[320306905,1711282245584,-500.0,0.00019178,2]
[320306907,1711282245593,-500.0,0.00019178,2]
[320306909,1711282245603,-500.0,0.00019178,2]
[320306911,1711282245612,-500.0,0.00019178,2]
[320306913,1711282245621,-500.0,0.00019178,2]
[320306915,1711282245631,-500.0,0.00019178,2]
[320306917,1711282245640,-506.63571528,0.00019178,2]
[320306919,1711282245649,-500.0,0.00019178,2]
[320306921,1711282245659,-500.0,0.00019178,2]
[320306923,1711282245669,-500.0,0.00019178,2]
[320306926,1711282245679,-398.96742503,0.00019178,2]
[320306928,1711282245691,-500.0,0.00019178,2]
[320306930,1711282245700,-500.0,0.00019178,2]
[320306932,1711282245709,-500.0,0.00019178,2]
[320306934,1711282245718,-496.23602053,0.00019178,2]
[320306936,1711282245729,-500.0,0.00019178,2]
[320306938,1711282245738,-500.0,0.00019178,2]
[320306940,1711282245748,-588.24,0.00019178,2]
[320306942,1711282245757,-507.48755309,0.00019178,2]
[320306944,1711282245766,-500.0,0.00019178,2]
[320306946,1711282245777,-500.0,0.00019178,2]
[320306948,1711282245786,-500.0,0.00019178,2]
[320306949,1711282245795,-500.0,0.00019178,2]
[320306950,1711282245804,-500.0,0.00019178,2]
[320306951,1711282245815,-500.0,0.00019178,2]
[320306952,1711282245824,-511.56062231,0.00019178,2]
[320306953,1711282245833,-500.0,0.00019178,2]
[320306954,1711282245843,-518.61220647,0.00019178,2]
[320306955,1711282245853,-500.0,0.00019178,2]
[320306965,1711282246043,-500.0,0.00019178,2]
[320306967,1711282246056,-508.92126159,0.00019178,2]
[320306969,1711282246065,-500.0,0.00019178,2]
[320306971,1711282246075,-500.0,0.00019178,2]
[320306973,1711282246085,-500.0,0.00019178,2]
[320306974,1711282246095,-500.0,0.00019178,2]
[320306976,1711282246105,-5093.37,0.00019178,2]
[320306978,1711282246114,-500.0,0.00019178,2]
[320306980,1711282246125,-627.5204759,0.00019178,2]
[320306982,1711282246134,-509.53810962,0.00019178,2]
[320306984,1711282246143,-508.18849075,0.00019178,2]
[320306986,1711282246153,-500.0,0.00019178,2]
[320306988,1711282246162,-500.0,0.00019178,2]
[320306990,1711282246171,-500.0,0.00019178,2]
[320306992,1711282246181,-500.0,0.00019178,2]
[320306994,1711282246191,-500.0,0.00019178,2]
[320306996,1711282246200,-500.0,0.00019178,2]
[320306998,1711282246210,-500.0,0.00019178,2]
[320307000,1711282246220,-500.0,0.00019178,2]
[320307002,1711282246233,-500.0,0.00019178,2]
[320307004,1711282246242,-500.0,0.00019178,2]
[320307005,1711282246251,-500.0,0.00019178,2]
[320307006,1711282246261,-500.0,0.00019178,2]
[320307007,1711282246270,-500.0,0.00019178,2]
[320307008,1711282246280,-500.0,0.00019178,2]
[320307009,1711282246289,-500.0,0.00019178,2]
[320307010,1711282246298,-489.75448211,0.00019178,2]
[320307011,1711282246307,-500.0,0.00019178,2]
[320307012,1711282246316,-500.0,0.00019178,2]
[320307013,1711282246326,-500.0,0.00019178,2]
[320307014,1711282246336,-500.0,0.00019178,2]
[320307015,1711282246346,-506.67800532,0.00019178,2]
[320307016,1711282246355,-500.0,0.00019178,2]
[320307017,1711282246365,-500.0,0.00019178,2]
[320307018,1711282246374,-500.0,0.00019178,2]
[320307019,1711282246383,-500.0,0.00019178,2]
[320307020,1711282246392,-500.0,0.00019178,2]
[320307021,1711282246400,-500.0,0.00019178,2]
[320307022,1711282246409,-500.0,0.00019178,2]
[320307023,1711282246418,-500.0,0.00019178,2]
[320307024,1711282246427,-500.0,0.00019178,2]
[320307025,1711282246437,-500.0,0.00019178,2]
[320307026,1711282246446,-500.0,0.00019178,2]
[320307027,1711282246455,-500.0,0.00019178,2]
[320307028,1711282246464,-500.0,0.00019178,2]
[320307029,1711282246476,-500.0,0.00019178,2]
[320307030,1711282246486,-500.0,0.00019178,2]
[320307031,1711282246496,-500.0,0.00019178,2]
[320307032,1711282246505,-500.0,0.00019178,2]
[320307033,1711282246515,-500.0,0.00019178,2]
[320307034,1711282246524,-500.0,0.00019178,2]
[320307035,1711282246533,-500.0,0.00019178,2]
[320307036,1711282246543,-500.0,0.00019178,2]
[320307037,1711282246552,-500.0,0.00019178,2]
[320307038,1711282246562,-500.0,0.00019178,2]
[320307039,1711282246572,-500.0,0.00019178,2]
[320307040,1711282246581,-500.0,0.00019178,2]
[320307041,1711282246591,-590.03847802,0.00019178,2]
[320307042,1711282246600,-500.0,0.00019178,2]
[320307043,1711282246610,-500.0,0.00019178,2]
[320307044,1711282246620,-327.97010657,0.00019178,2]
[320307045,1711282246630,-500.0,0.00019178,2]
[320307046,1711282246639,-500.0,0.00019178,2]
[320307047,1711282246650,-500.0,0.00019178,2]
[320307048,1711282246660,-500.0,0.00019178,2]
[320307049,1711282246670,-500.0,0.00019178,2]
[320307051,1711282246680,-500.0,0.00019178,2]
[320307052,1711282246690,-500.0,0.00019178,2]
[320307054,1711282246703,-500.0,0.00019178,2]
[320307055,1711282246713,-500.0,0.00019178,2]
[320307056,1711282246723,-500.0,0.00019178,2]
[320307057,1711282246733,-500.0,0.00019178,2]
[320307058,1711282246743,-500.0,0.00019178,2]
[320307061,1711282246754,-1773.38,0.00019178,2]
[320307063,1711282246764,-500.0,0.00019178,2]
[320307065,1711282246776,-500.0,0.00019178,2]
[320307067,1711282246787,-500.0,0.00019178,2]
[320307069,1711282246797,-500.0,0.00019178,2]
[320307071,1711282246808,-500.0,0.00019178,2]
[320307073,1711282246818,-500.0,0.00019178,2]
[320307075,1711282246828,-500.0,0.00019178,2]
[320307076,1711282246838,-335.8595962,0.00019178,2]
[320307079,1711282246848,-500.0,0.00019178,2]
[320307081,1711282246860,-513.06928491,0.00019178,2]
[320307083,1711282246870,-500.0,0.00019178,2]
[320307085,1711282246880,-369.48,0.00019178,2]
[320307087,1711282246889,-500.0,0.00019178,2]
[320307089,1711282246899,-500.0,0.00019178,2]
[320307091,1711282246909,-500.0,0.00019178,2]
[320307093,1711282246918,-505.5302697,0.00019178,2]
[320307095,1711282246927,-500.0,0.00019178,2]
[320307097,1711282246937,-509.98147723,0.00019178,2]
[320307099,1711282246946,-500.0,0.00019178,2]
[320307101,1711282246955,-500.0,0.00019178,2]
[320307103,1711282246964,-500.0,0.00019178,2]
[320307105,1711282246975,-500.0,0.00019178,2]
[320307107,1711282246985,-500.0,0.00019178,2]
[320307109,1711282246994,-500.0,0.00019178,2]
[320307111,1711282247004,-500.0,0.00019178,2]
[320307113,1711282247013,-500.0,0.00019178,2]
[320307115,1711282247023,-500.0,0.00019178,2]
[320307117,1711282247033,-500.0,0.00019178,2]
[320307119,1711282247043,-2521.64,0.00019178,2]
[320307121,1711282247052,-500.0,0.00019178,2]
[320307123,1711282247061,-500.0,0.00019178,2]
[320307125,1711282247071,-500.0,0.00019178,2]
[320307127,1711282247082,-500.0,0.00019178,2]
[320307129,1711282247091,-500.0,0.00019178,2]
[320307132,1711282247101,-500.0,0.00019178,2]
[320307134,1711282247111,-500.0,0.00019178,2]
[320307136,1711282247121,-500.0,0.00019178,2]
[320307138,1711282247131,-500.0,0.00019178,2]
[320307140,1711282247141,-500.0,0.00019178,2]
[320307142,1711282247150,-500.0,0.00019178,2]
[320307144,1711282247161,-500.0,0.00019178,2]
[320307146,1711282247170,-500.0,0.00019178,2]
[320307148,1711282247179,-500.0,0.00019178,2]
[320307150,1711282247190,-500.0,0.00019178,2]
[320307151,1711282247200,-500.0,0.00019178,2]
[320307154,1711282247211,-500.0,0.00019178,2]
[320307156,1711282247222,-500.0,0.00019178,2]
[320307158,1711282247233,-394.4309665,0.00019178,2]
[320307160,1711282247243,-500.0,0.00019178,2]
[320307162,1711282247253,-500.0,0.00019178,2]
[320307164,1711282247262,-150.0,0.00019178,2]
[320307166,1711282247273,-500.0,0.00019178,2]
[320307168,1711282247284,-451.66228033,0.00019178,2]
[320307170,1711282247294,-507.37058184,0.00019178,2]
[320307172,1711282247304,-500.0,0.00019178,2]
[320307174,1711282247314,-507.69947847,0.00019178,2]
[320307176,1711282247324,-500.0,0.00019178,2]
[320307178,1711282247334,-500.0,0.00019178,2]
[320307180,1711282247343,-500.0,0.00019178,2]
[320307182,1711282247354,-500.0,0.00019178,2]
[320307184,1711282247363,-500.0,0.00019178,2]
[320307186,1711282247373,-500.0,0.00019178,2]
[320307188,1711282247383,-500.0,0.00019178,2]
[320307190,1711282247394,-500.0,0.00019178,2]
[320307192,1711282247404,-500.0,0.00019178,2]
[320307194,1711282247414,-740.11,0.00019178,2]
[320307196,1711282247427,-500.0,0.00019178,2]
[320307198,1711282247438,-500.0,0.00019178,2]
[320307199,1711282247448,-500.0,0.00019178,2]
[320307202,1711282247459,-500.0,0.00019178,2]
[320307203,1711282247469,-500.0,0.00019178,2]
[320307205,1711282247481,-500.0,0.00019178,2]
[320307208,1711282247492,-500.0,0.00019178,2]
[320307210,1711282247502,-500.0,0.00019178,2]
[320307212,1711282247512,-500.0,0.00019178,2]
[320307214,1711282247523,-500.0,0.00019178,2]
[320307216,1711282247534,-500.0,0.00019178,2]
[320307218,1711282247544,-500.0,0.00019178,2]
[320307219,1711282247555,-500.0,0.00019178,2]
[320307222,1711282247565,-500.0,0.00019178,2]
[320307224,1711282247574,-500.0,0.00019178,2]
[320307226,1711282247585,-500.0,0.00019178,2]
[320307228,1711282247595,-406.39135679,0.00019178,2]
[320307230,1711282247604,-500.0,0.00019178,2]
[320307231,1711282247616,-500.0,0.00019178,2]
[320307233,1711282247626,-500.0,0.00019178,2]
[320307235,1711282247636,-503.28885224,0.00019178,2]
[320307237,1711282247646,-500.0,0.00019178,2]
[320307239,1711282247656,-500.0,0.00019178,2]
[320307241,1711282247666,-500.0,0.00019178,2]
[320307244,1711282247675,-500.0,0.00019178,2]
[320307246,1711282247686,-503.74536041,0.00019178,2]
[320307248,1711282247698,-504.99938937,0.00019178,2]
[320307250,1711282247708,-500.0,0.00019178,2]
[320307251,1711282247719,-500.0,0.00019178,2]
[320307254,1711282247731,-500.0,0.00019178,2]
[320307256,1711282247743,-500.0,0.00019178,2]
[320307257,1711282247754,-502.24067002,0.00019178,2]
[320307260,1711282247765,-500.0,0.00019178,2]
[320307262,1711282247777,-500.0,0.00019178,2]
[320307264,1711282247787,-500.0,0.00019178,2]
[320307266,1711282247797,-470.70547012,0.00019178,2]
[320307268,1711282247808,-500.0,0.00019178,2]
[320307270,1711282247818,-500.0,0.00019178,2]
[320307271,1711282247830,-500.0,0.00019178,2]
[320307274,1711282247842,-500.0,0.00019178,2]
[320307276,1711282247851,-500.0,0.00019178,2]
[320307277,1711282247861,-640.76,0.00019178,2]
[320307280,1711282247871,-500.0,0.00019178,2]
[320307282,1711282247881,-500.0,0.00019178,2]
[320307284,1711282247893,-500.0,0.00019178,2]
[320307285,1711282247903,-500.0,0.00019178,2]
[320307287,1711282247913,-500.0,0.00019178,2]
[320307289,1711282247924,-500.0,0.00019178,2]
[320307292,1711282247934,-500.0,0.00019178,2]
[320307293,1711282247944,-500.0,0.00019178,2]
[320307296,1711282247953,-500.0,0.00019178,2]
[320307298,1711282247963,-500.0,0.00019178,2]
[320307300,1711282247975,-500.0,0.00019178,2]
[320307302,1711282247984,-500.0,0.00019178,2]
[320307304,1711282247994,-500.0,0.00019178,2]
[320307306,1711282248004,-160.39424616,0.00019178,2]
[320307308,1711282248014,-505.99449482,0.00019178,2]
[320307310,1711282248024,-500.0,0.00019178,2]
[320307312,1711282248034,-1701.69,0.00019178,2]
[320307314,1711282248044,-500.0,0.00019178,2]
[320307316,1711282248053,-504.79589237,0.00019178,2]
[320307318,1711282248063,-503.14850235,0.00019178,2]
[320307319,1711282248073,-500.0,0.00019178,2]
[320307322,1711282248083,-500.0,0.00019178,2]
[320307324,1711282248094,-500.0,0.00019178,2]
[320307326,1711282248104,-500.0,0.00019178,2]
[320307328,1711282248114,-500.0,0.00019178,2]
[320307330,1711282248124,-500.0,0.00019178,2]
[320307332,1711282248135,-500.0,0.00019178,2]
[320307334,1711282248145,-500.0,0.00019178,2]
[320307336,1711282248155,-500.0,0.00019178,2]
[320307338,1711282248165,-500.0,0.00019178,2]
[320307340,1711282248175,-500.0,0.00019178,2]
[320307342,1711282248185,-500.0,0.00019178,2]
[320307344,1711282248196,-500.0,0.00019178,2]
[320307346,1711282248207,-500.0,0.00019178,2]
[320307348,1711282248217,-500.0,0.00019178,2]
[320307350,1711282248229,-500.0,0.00019178,2]
[320307352,1711282248239,-503.12220195,0.00019178,2]
[320307354,1711282248249,-500.0,0.00019178,2]
[320307356,1711282248259,-500.0,0.00019178,2]
[320307358,1711282248268,-500.0,0.00019178,2]
[320307360,1711282248281,-500.0,0.00019178,2]
[320307361,1711282248291,-500.0,0.00019178,2]
[320307362,1711282248300,-556.8474645,0.00019178,2]